bitfinex/quotes_BTCUSD_20241003
["timestamp","ask_amount","ask_price","bid_price","bid_amount"]
[1727955106069,0.001638,60870.0,60869.0,0.31860221]
[1727955107694,0.001638,60870.0,60869.0,0.32188743]
[1727955108096,0.001638,60870.0,60869.0,0.41928743]
[1727955108300,0.001638,60870.0,60869.0,0.41600221]
[1727955109128,0.001638,60870.0,60869.0,0.58940221]
[1727955109305,0.001638,60870.0,60869.0,0.41600221]
[1727955117322,0.001638,60870.0,60869.0,0.25171521]
[1727955117566,0.001638,60870.0,60869.0,0.0852]
[1727955117567,0.165922,60870.0,60869.0,0.0852]
[1727955117989,0.165922,60870.0,60869.0,0.007]
[1727955118639,0.165922,60870.0,60869.0,0.002]
[1727955118851,0.164301,60864.0,60861.0,0.169019]
[1727955119075,0.328588,60867.0,60862.0,0.07543019]
[1727955119291,0.164298,60865.0,60862.0,0.07543019]
[1727955119751,0.164298,60865.0,60862.0,0.23973519]
[1727955120621,0.164295,60866.0,60863.0,0.164302]
[1727955120832,0.164298,60865.0,60864.0,0.0820428]
[1727955121051,0.328588,60867.0,60864.0,0.0820428]
[1727955121270,0.164298,60865.0,60864.0,0.0820428]
[1727955121481,0.328576,60869.0,60864.0,0.0820428]
[1727955121701,0.001,60865.0,60863.0,0.164303]
[1727955121911,0.164295,60866.0,60863.0,0.164303]
[1727955122122,0.1643,60865.0,60861.0,0.497635]
[1727955122405,0.1643,60865.0,60864.0,0.005]
[1727955122620,0.1643,60865.0,60864.0,0.001]
[1727955123041,0.164296,60866.0,60864.0,0.001]
[1727955123717,0.164296,60866.0,60863.0,0.164303]
[1727955124001,0.001,60865.0,60863.0,0.172303]
[1727955124279,0.164296,60866.0,60864.0,0.0304569]
[1727955124504,0.164296,60866.0,60864.0,0.0354569]
[1727955124746,0.164296,60866.0,60864.0,0.0324569]
[1727955125219,0.164293,60867.0,60864.0,0.1967569]
[1727955125696,0.164293,60867.0,60864.0,0.2017569]
[1727955125934,0.164293,60867.0,60865.0,0.10280109]
[1727955127464,0.164292,60867.0,60865.0,0.10280109]
[1727955127680,0.16429,60868.0,60865.0,0.27109809]
[1727955127891,0.16429,60868.0,60865.0,0.27209809]
[1727955128505,0.16429,60868.0,60865.0,0.26709809]
[1727955128749,0.16429,60868.0,60866.0,0.024215]
[1727955128990,0.330211,60870.0,60866.0,0.188508]
[1727955129209,0.001638,60870.0,60868.0,0.18725408]
[1727955129454,0.001638,60870.0,60869.0,0.164287]
[1727955129687,0.001638,60870.0,60869.0,0.244887]
[1727955129915,0.001638,60870.0,60869.0,0.2753439]
[1727955130385,0.0273894,60870.0,60869.0,0.2753439]
[1727955130609,0.0293894,60870.0,60869.0,0.2753439]
[1727955130817,0.003638,60870.0,60869.0,0.2753439]
[1727955131302,0.001638,60870.0,60869.0,0.2753439]
[1727955131517,0.001638,60870.0,60869.0,0.2763439]
[1727955131726,0.001638,60870.0,60869.0,0.3762439]
[1727955135394,0.001638,60870.0,60869.0,0.3782439]
[1727955136257,0.001638,60870.0,60869.0,0.2803439]
[1727955136720,0.165922,60870.0,60869.0,0.005]
[1727955137147,0.21489562,60870.0,60869.0,0.005]
[1727955137356,0.165922,60870.0,60869.0,0.005]
[1727955137844,0.23938243,60870.0,60869.0,0.005]
[1727955138060,0.2149058,60870.0,60869.0,0.005]
[1727955138470,0.21490561,60870.0,60869.0,0.005]
[1727955138931,0.21490166,60870.0,60869.0,0.005]
[1727955139166,0.24065473,60870.0,60869.0,0.005]
[1727955139374,0.21490166,60870.0,60869.0,0.005]
[1727955140010,0.21490166,60870.0,60869.0,0.04675777]
[1727955140665,0.165922,60870.0,60869.0,0.04675777]
[1727955140879,0.165922,60870.0,60869.0,0.005]
[1727955141548,0.21490166,60870.0,60869.0,0.005]
[1727955141831,0.21490166,60870.0,60869.0,0.169287]
[1727955141832,0.001638,60870.0,60869.0,0.169287]
[1727955142045,0.001638,60870.0,60869.0,0.30147593]
[1727955142260,0.0273904,60870.0,60869.0,0.30376132]
[1727955142477,0.0333904,60870.0,60869.0,0.30376132]
[1727955142696,0.0333904,60870.0,60869.0,0.30047593]
[1727955142911,0.0273904,60870.0,60869.0,0.30047593]
[1727955143369,0.0303904,60870.0,60869.0,0.30047593]
[1727955143598,0.0273904,60870.0,60869.0,0.30047593]
[1727955143826,0.0273904,60870.0,60869.0,0.30447593]
[1727955144042,0.0273904,60870.0,60869.0,0.30047593]
[1727955144494,0.0273904,60870.0,60869.0,0.30447593]
[1727955144721,0.0273904,60870.0,60869.0,0.30376134]
[1727955144935,0.0273904,60870.0,60869.0,0.30447593]
[1727955145324,0.001638,60870.0,60869.0,0.30447593]
[1727955147135,0.001638,60870.0,60869.0,0.30776134]
[1727955147378,0.001638,60870.0,60869.0,0.30447593]
[1727955148697,0.02739006,60870.0,60869.0,0.30447593]
[1727955149756,0.001638,60870.0,60869.0,0.30447593]
[1727955149970,0.001638,60870.0,60869.0,0.30776133]
[1727955150184,0.001638,60870.0,60869.0,0.40566133]
[1727955150398,0.001638,60870.0,60869.0,0.40237593]
[1727955151330,0.001638,60870.0,60869.0,0.39837593]
[1727955151567,0.001638,60870.0,60869.0,0.47657593]
[1727955151775,0.001638,60870.0,60869.0,0.63976264]
[1727955152218,0.001638,60870.0,60869.0,0.64176264]
[1727955152653,0.001638,60870.0,60869.0,0.65076264]
[1727955153119,0.001638,60870.0,60869.0,0.64176264]
[1727955153393,0.002638,60870.0,60869.0,0.66076264]
[1727955156274,0.001638,60870.0,60869.0,0.65276264]
[1727955156509,0.002638,60870.0,60869.0,0.65476264]
[1727955156931,0.002638,60870.0,60869.0,0.66876264]
[1727955157138,0.002638,60870.0,60869.0,0.65476264]
[1727955157348,0.002638,60870.0,60869.0,0.75976264]
[1727955157615,0.002638,60870.0,60869.0,0.77376264]
[1727955157877,0.002638,60870.0,60869.0,0.75976264]
[1727955158130,0.002638,60870.0,60869.0,0.77376264]
[1727955158597,0.001638,60870.0,60869.0,0.76076264]
[1727955158793,0.001638,60870.0,60869.0,0.77376264]
[1727955159206,0.001638,60870.0,60869.0,0.76076264]
[1727955159713,0.001638,60870.0,60869.0,0.77376264]
[1727955159979,0.001638,60870.0,60869.0,0.75976264]
[1727955160210,0.001638,60870.0,60869.0,0.77376264]
[1727955160428,0.001638,60870.0,60869.0,0.75976264]
[1727955160824,0.001638,60870.0,60869.0,0.77376264]
[1727955161137,0.001638,60870.0,60869.0,0.76676264]
[1727955161350,0.001638,60870.0,60869.0,0.94001672]
[1727955161574,0.001638,60870.0,60869.0,0.94101672]
[1727955162228,0.001638,60870.0,60869.0,0.92701672]
[1727955162670,0.001638,60870.0,60869.0,0.94101672]
[1727955163827,0.001638,60870.0,60869.0,0.95501672]
[1727955164036,0.001638,60870.0,60869.0,0.94101672]
[1727955164463,0.001638,60870.0,60869.0,0.95501672]
[1727955165628,0.001638,60870.0,60869.0,0.32847593]
[1727955166101,0.165922,60870.0,60869.0,0.028]
[1727955166999,0.165922,60870.0,60869.0,0.014]
[1727955167466,0.165922,60870.0,60869.0,0.021]
[1727955167680,0.21490214,60870.0,60869.0,0.021]
[1727955167897,0.21490214,60870.0,60864.0,0.164298]
[1727955167898,0.164289,60869.0,60864.0,0.164298]
[1727955168116,0.165922,60870.0,60869.0,0.001]
[1727955168332,0.165922,60870.0,60869.0,0.009]
[1727955168799,0.165922,60870.0,60869.0,0.001]
[1727955169038,0.02739082,60870.0,60869.0,0.001]
[1727955169254,0.19167482,60870.0,60869.0,0.06701157]
[1727955169672,0.19167482,60870.0,60869.0,0.001]
[1727955169887,0.19367482,60870.0,60869.0,0.001]
[1727955170120,0.003638,60870.0,60869.0,0.001]
[1727955170801,0.003638,60870.0,60869.0,0.18825408]
[1727955171010,0.003638,60870.0,60869.0,0.35254108]
[1727955171465,0.003638,60870.0,60869.0,0.45328175]
[1727955173030,0.003638,60870.0,60869.0,0.26602767]
[1727955173239,0.02938984,60870.0,60869.0,0.26602767]
[1727955174840,0.02938984,60870.0,60869.0,0.10174067]
[1727955175049,0.02938984,60870.0,60869.0,0.001]
[1727955175264,0.003638,60870.0,60869.0,0.001]
[1727955175852,0.167922,60870.0,60869.0,0.001]
[1727955176257,0.003638,60870.0,60869.0,0.001]
[1727955177948,0.60320871,60870.0,60869.0,0.001]
[1727955178176,0.6549702,60870.0,60869.0,0.001]
[1727955178646,0.8277269,60870.0,60869.0,0.001]
[1727955178880,1.14066397,60870.0,60869.0,0.001]
[1727955179111,0.440806,60862.0,60861.0,0.000819]
[1727955179323,0.6557542,60862.0,60861.0,0.000819]
[1727955181480,0.60399271,60862.0,60861.0,0.000819]
[1727955181974,0.60999271,60862.0,60861.0,0.001819]
[1727955182180,0.61199271,60862.0,60861.0,0.001819]
[1727955182395,0.60999271,60862.0,60861.0,0.001819]
[1727955182833,0.73531698,60862.0,60861.0,0.001819]
[1727955183076,0.76107663,60862.0,60861.0,0.001819]
[1727955183289,0.76107885,60862.0,60861.0,0.001819]
[1727955183722,0.63875236,60862.0,60861.0,0.001819]
[1727955183934,0.76107885,60862.0,60861.0,0.001819]
[1727955184366,0.73656416,60862.0,60861.0,0.001819]
[1727955185466,0.63875236,60862.0,60861.0,0.001819]
[1727955186375,0.71208049,60862.0,60861.0,0.001819]
[1727955187903,0.7120361,60862.0,60861.0,0.001819]
[1727955188113,0.63875236,60862.0,60861.0,0.001819]
[1727955189421,0.68758971,60862.0,60861.0,0.001819]
[1727955190296,0.63875236,60862.0,60861.0,0.001819]
[1727955190504,0.68758971,60862.0,60861.0,0.001819]
[1727955190934,0.68314238,60862.0,60861.0,0.001819]
[1727955191150,0.68478038,60862.0,60861.0,0.001819]
[1727955191362,0.63594303,60862.0,60861.0,0.001819]
[1727955196629,0.61018338,60862.0,60861.0,0.001819]
[1727955198313,0.75798102,60862.0,60861.0,0.001819]
[1727955198520,0.68478396,60862.0,60861.0,0.001819]
[1727955198940,0.68378396,60862.0,60861.0,0.001819]
[1727955199143,0.80570818,60862.0,60861.0,0.001819]
[1727955199354,0.68878396,60862.0,60861.0,0.001819]
[1727955199570,0.68178396,60862.0,60861.0,0.001819]
[1727955199783,0.79767088,60862.0,60861.0,0.000819]
[1727955200060,0.81167088,60862.0,60861.0,0.000819]
[1727955200278,0.82067088,60862.0,60861.0,0.000819]
[1727955200705,0.68978396,60862.0,60861.0,0.000819]
[1727955200937,0.70378396,60862.0,60861.0,0.000819]
[1727955201192,0.82767088,60862.0,60861.0,0.000819]
[1727955201423,0.9188003,60862.0,60861.0,0.000819]
[1727955201665,1.04066782,60862.0,60861.0,0.000819]
[1727955202348,1.04066782,60862.0,60843.0,0.24828066]
[1727955202349,0.123,60857.0,60843.0,0.24828066]
[1727955202585,0.52340808,60844.0,60843.0,0.24828066]
[1727955202798,0.64640808,60844.0,60843.0,0.24828066]
[1727955203024,0.64640808,60844.0,60829.0,0.24909866]
[1727955203025,0.164373,60837.0,60830.0,0.03086416]
[1727955203265,0.164373,60837.0,60829.0,0.24909866]
[1727955203266,0.164373,60837.0,60831.0,0.03086416]
[1727955203555,0.18725408,60838.0,60830.0,0.03089352]
[1727955203795,0.328737,60839.0,60829.0,0.27999218]
[1727955203796,0.18725408,60833.0,60829.0,0.27999218]
[1727955204065,0.164392,60830.0,60829.0,0.27999218]
[1727955204335,0.164392,60830.0,60829.0,0.000818]
[1727955204336,0.32757871,60830.0,60829.0,0.000818]
[1727955206576,0.33257871,60830.0,60829.0,0.000818]
[1727955207093,0.36834952,60830.0,60829.0,0.0317689]
[1727955207343,0.34257871,60830.0,60829.0,0.0317689]
[1727955208573,0.34257871,60830.0,60829.0,0.03165135]
[1727955208835,0.35057871,60830.0,60829.0,0.03165135]
[1727955209641,0.187392,60830.0,60829.0,0.03165135]
[1727955209912,0.187392,60830.0,60829.0,0.39493917]
[1727955209913,0.023,60830.0,60829.0,0.39493917]
[1727955210919,0.03576905,60830.0,60829.0,0.000818]
[1727955211688,0.20016105,60830.0,60829.0,0.000818]
[1727955212111,0.02576905,60830.0,60829.0,0.000818]
[1727955212530,0.03376905,60830.0,60829.0,0.000818]
[1727955213010,0.03376905,60830.0,60829.0,0.001818]
[1727955213675,0.008,60830.0,60829.0,0.001818]
[1727955213888,0.172392,60830.0,60829.0,0.001818]
[1727955215738,0.41627871,60830.0,60829.0,0.001818]
[1727955216394,0.4420507,60830.0,60829.0,0.001818]
[1727955216618,0.62930478,60830.0,60829.0,0.001818]
[1727955216846,0.62130478,60830.0,60829.0,0.000818]
[1727955217060,0.63430478,60830.0,60829.0,0.000818]
[1727955217277,0.62930478,60830.0,60829.0,0.000818]
[1727955217496,0.72930478,60830.0,60829.0,0.000818]
[1727955217736,0.72130478,60830.0,60829.0,0.000818]
[1727955218660,0.73030478,60830.0,60829.0,0.000818]
[1727955218871,0.73230478,60830.0,60829.0,0.000818]
[1727955219322,0.74530478,60830.0,60829.0,0.000818]
[1727955219531,0.73430478,60830.0,60829.0,0.000818]
[1727955219749,0.74830478,60830.0,60829.0,0.000818]
[1727955219971,0.73530478,60830.0,60829.0,0.000818]
[1727955220195,0.87641124,60830.0,60829.0,0.000818]
[1727955220407,0.89041124,60830.0,60829.0,0.000818]
[1727955220651,0.74930478,60830.0,60829.0,0.000818]
[1727955222624,0.72353279,60830.0,60829.0,0.000818]
[1727955225935,0.74930562,60830.0,60829.0,0.000818]
[1727955226178,0.72353279,60830.0,60829.0,0.000818]
[1727955226397,0.45557871,60830.0,60829.0,0.000818]
[1727955227283,0.44157871,60830.0,60829.0,0.000818]
[1727955228173,0.42757871,60830.0,60829.0,0.000818]
[1727955228415,0.44157871,60830.0,60829.0,0.000818]
[1727955228588,0.42757871,60830.0,60829.0,0.000818]
[1727955228819,0.44157871,60830.0,60829.0,0.000818]
[1727955229036,0.45057871,60830.0,60829.0,0.000818]
[1727955229247,0.43657871,60830.0,60829.0,0.000818]
[1727955229515,0.46235269,60830.0,60829.0,0.000818]
[1727955229749,0.43857871,60830.0,60829.0,0.000818]
[1727955230191,0.44757871,60830.0,60829.0,0.000818]
[1727955231294,0.43857871,60830.0,60829.0,0.000818]
[1727955231716,0.44757871,60830.0,60829.0,0.000818]
[1727955232787,0.02,60830.0,60829.0,0.079218]
[1727955232995,0.184392,60830.0,60829.0,0.079218]
[1727955234373,0.21016221,60830.0,60829.0,0.079218]
[1727955234578,0.173392,60830.0,60829.0,0.077698]
[1727955234797,0.164392,60830.0,60829.0,0.077698]
[1727955235175,0.164395,60829.0,60828.0,0.000818]
[1727955235377,0.32758171,60829.0,60828.0,0.000818]
[1727955235794,0.42602324,60829.0,60828.0,0.000818]
[1727955236466,0.43202324,60829.0,60828.0,0.000818]
[1727955236680,0.43402324,60829.0,60828.0,0.000818]
[1727955237542,0.4597959,60829.0,60828.0,0.000818]
[1727955237758,0.51156139,60829.0,60828.0,0.000818]
[1727955238175,0.76905951,60829.0,60828.0,0.000818]
[1727955238446,1.13554622,60829.0,60828.0,0.000818]
[1727955238653,0.8634929,60829.0,60828.0,0.000818]
[1727955238854,0.8614929,60829.0,60828.0,0.000818]
[1727955239365,0.8514929,60829.0,60828.0,0.000818]
[1727955239771,0.68830619,60829.0,60828.0,0.000818]
[1727955240208,0.64945708,60826.0,60825.0,1e-06]
[1727955240417,0.81264379,60826.0,60825.0,1e-06]
[1727955240620,0.81271379,60826.0,60825.0,1e-06]
[1727955240833,0.91668711,60826.0,60825.0,1e-06]
[1727955241030,0.9684526,60826.0,60825.0,1e-06]
[1727955241663,0.99422918,60826.0,60825.0,1e-06]
[1727955241931,1.01022918,60826.0,60825.0,1e-06]
[1727955242205,0.462511,60823.0,60822.0,0.0167353]
[1727955242414,0.55328708,60815.0,60814.0,0.24828066]
[1727955242628,0.76830928,60815.0,60814.0,0.24828066]
[1727955242851,0.76830928,60815.0,60813.0,0.000819]
[1727955242852,0.264435,60814.0,60813.0,0.000819]
[1727955243078,0.4794572,60814.0,60813.0,0.000819]
[1727955243296,0.56738431,60814.0,60813.0,0.000819]
[1727955244183,0.75463839,60814.0,60813.0,0.000819]
[1727955244977,0.76863839,60814.0,60813.0,0.000819]
[1727955245591,0.970708,60814.0,60813.0,0.000819]
[1727955246072,1.21898866,60814.0,60813.0,0.000819]
[1727955246233,1.05306582,60814.0,60813.0,0.000819]
[1727955246445,0.98258966,60814.0,60813.0,0.000819]
[1727955247333,0.002,60813.0,60801.0,0.0002]
[1727955247536,0.264468,60802.0,60801.0,0.0002]
[1727955247755,0.97389555,60802.0,60801.0,0.0002]
[1727955247966,1.02193523,60802.0,60801.0,0.0002]
[1727955248190,0.85746723,60802.0,60767.0,0.34219966]
[1727955248419,0.164522,60782.0,60767.0,0.34219966]
[1727955248657,0.164522,60782.0,60768.0,0.329935]
[1727955248658,0.164592,60782.0,60768.0,0.329935]
[1727955248877,0.164592,60782.0,60771.0,0.164551]
[1727955249083,0.164592,60782.0,60775.0,0.20230716]
[1727955249781,0.35077871,60782.0,60775.0,0.20230716]
[1727955250041,0.35377871,60782.0,60775.0,0.20230716]
[1727955250300,0.1,60777.0,60762.0,0.0159163]
[1727955250548,0.45182708,60763.0,60762.0,0.0159163]
[1727955250760,0.45189708,60763.0,60762.0,0.0159163]
[1727955251002,0.50651342,60763.0,60762.0,0.0159163]
[1727955251242,0.66970013,60763.0,60762.0,0.0159163]
[1727955251940,0.69270013,60763.0,60762.0,0.0159163]
[1727955252151,0.78337341,60763.0,60762.0,0.0159163]
[1727955252365,0.78337341,60763.0,60740.0,0.28178066]
[1727955252366,0.364822,60745.0,60740.0,0.28178066]
[1727955252572,0.71533279,60745.0,60740.0,0.28178066]
[1727955252777,0.71533279,60745.0,60740.0,0.0335]
[1727955252778,0.71733279,60745.0,60740.0,0.0335]
[1727955252987,0.77194913,60745.0,60740.0,0.0335]
[1727955253211,0.91498974,60745.0,60740.0,0.0335]
[1727955253435,0.91298974,60745.0,60740.0,0.0335]
[1727955253724,0.47669117,60745.0,60740.0,0.0335]
[1727955254323,0.45087871,60745.0,60740.0,0.0335]
[1727955254541,0.46487871,60745.0,60740.0,0.0335]
[1727955255409,0.44187871,60745.0,60740.0,0.0335]
[1727955255684,0.01407,60745.0,60740.0,0.0335]
[1727955255901,0.16325671,60745.0,60740.0,0.0335]
[1727955256100,0.37220438,60745.0,60740.0,0.0335]
[1727955256315,0.35820438,60745.0,60740.0,0.0335]
[1727955256731,0.37020438,60745.0,60740.0,0.0335]
[1727955257343,0.35620438,60745.0,60740.0,0.0335]
[1727955257597,0.39101162,60745.0,60740.0,0.0335]
[1727955257819,0.39101162,60745.0,60742.0,0.164629]
[1727955257820,0.00907,60745.0,60742.0,0.164629]
[1727955258028,0.16442105,60747.0,60742.0,0.164629]
[1727955258236,0.329226,60749.0,60740.0,0.36277]
[1727955258237,0.014,60745.0,60740.0,0.36277]
[1727955258443,0.014,60745.0,60741.0,0.164831]
[1727955258875,0.007,60745.0,60741.0,0.0002]
[1727955259084,0.170617,60747.0,60743.0,0.164627]
[1727955259298,0.006,60747.0,60743.0,0.164627]
[1727955259512,0.001,60745.0,60743.0,0.164627]
[1727955259713,0.001,60745.0,60744.0,0.3273847]
[1727955260135,0.001,60745.0,60744.0,0.1627597]
[1727955260352,0.001,60745.0,60744.0,0.3273847]
[1727955260568,0.001,60745.0,60744.0,0.264625]
[1727955260783,0.005,60745.0,60744.0,0.1]
[1727955260992,0.004,60745.0,60744.0,0.1]
[1727955261476,0.164618,60747.0,60744.0,0.1]
[1727955261715,0.001,60745.0,60744.0,0.1]
[1727955261909,0.001,60745.0,60744.0,0.102]
[1727955262173,0.164617,60747.0,60744.0,0.1]
[1727955262406,0.001,60745.0,60744.0,0.1]
[1727955262822,0.264616,60748.0,60744.0,0.1]
[1727955263030,0.41725102,60748.0,60744.0,0.1]
[1727955263227,0.264616,60748.0,60744.0,0.100819]
[1727955263427,0.16318671,60747.0,60744.0,0.100819]
[1727955263628,0.1,60748.0,60745.0,0.33952]
[1727955263863,0.164618,60747.0,60745.0,0.1749]
[1727955264069,0.329234,60747.0,60745.0,0.1749]
[1727955264276,0.32780571,60746.0,60745.0,0.1749]
[1727955265144,0.32780571,60746.0,60745.0,0.0964]
[1727955265768,0.164622,60745.0,60744.0,0.100819]
[1727955265971,0.32780871,60745.0,60744.0,0.100819]
[1727955268423,0.33180871,60745.0,60744.0,0.100819]
[1727955268674,0.50056568,60745.0,60744.0,0.100819]
[1727955268922,0.35861541,60745.0,60744.0,0.100819]
[1727955270383,0.35461541,60745.0,60744.0,0.100819]
[1727955270625,0.35861541,60745.0,60744.0,0.100819]
[1727955271087,0.35461541,60745.0,60744.0,0.100819]
[1727955271334,0.35861541,60745.0,60744.0,0.100819]
[1727955271566,0.35761541,60745.0,60744.0,0.100819]
[1727955271817,0.35361541,60745.0,60744.0,0.100819]
[1727955272075,0.35861541,60745.0,60744.0,0.100819]
[1727955272341,0.0308067,60745.0,60744.0,0.100819]
[1727955272799,0.1954287,60745.0,60744.0,0.100819]
[1727955273419,0.1904287,60745.0,60744.0,0.100819]
[1727955273625,0.1914287,60745.0,60744.0,0.100819]
[1727955274049,0.1904287,60745.0,60744.0,0.100819]
[1727955274254,0.1944287,60745.0,60744.0,0.100819]
[1727955274499,0.168622,60745.0,60744.0,0.100819]
[1727955274703,0.264618,60747.0,60744.0,0.100819]
[1727955274916,0.16318671,60746.0,60744.0,0.100819]
[1727955275121,0.003,60745.0,60744.0,0.100819]
[1727955275329,0.004,60745.0,60744.0,0.100819]
[1727955275595,0.003,60745.0,60744.0,0.100819]
[1727955276276,0.003,60745.0,60744.0,0.28807308]
[1727955276571,0.001636,60750.0,60746.0,0.329239]
[1727955276784,0.004,60747.0,60746.0,0.493858]
[1727955277212,0.001636,60750.0,60747.0,0.164614]
[1727955277430,0.00121263,60750.0,60747.0,0.164614]
[1727955277640,0.00121263,60750.0,60746.0,0.329239]
[1727955277641,0.02701876,60750.0,60746.0,0.329239]
[1727955277858,0.02701876,60750.0,60749.0,0.164611]
[1727955278284,0.02701876,60750.0,60744.0,0.71261908]
[1727955278285,0.02801876,60750.0,60744.0,0.71261908]
[1727955278499,0.00221263,60750.0,60746.0,0.164619]
[1727955278710,0.00221263,60750.0,60747.0,0.164616]
[1727955279770,0.00221263,60750.0,60746.0,0.164617]
[1727955279983,0.00221263,60750.0,60748.0,0.164613]
[1727955280301,0.00221263,60750.0,60749.0,0.239911]
[1727955280302,0.00121263,60750.0,60749.0,0.239911]
[1727955280671,0.00221263,60750.0,60749.0,0.241911]
[1727955280884,0.00221263,60750.0,60749.0,0.239911]
[1727955281105,0.00121263,60750.0,60749.0,0.239911]
[1727955281344,0.00094628,60750.0,60749.0,0.46677785]
[1727955281571,0.00094628,60750.0,60749.0,0.46348621]
[1727955282411,0.00094628,60750.0,60749.0,0.46548621]
[1727955282885,0.00194628,60750.0,60749.0,0.47048621]
[1727955283313,0.00294628,60750.0,60749.0,0.47248621]
[1727955283528,0.00294628,60750.0,60749.0,0.47048621]
[1727955283739,0.00294628,60750.0,60749.0,0.46848621]
[1727955283740,0.00194628,60750.0,60749.0,0.46848621]
[1727955283963,0.00194628,60750.0,60749.0,0.47048621]
[1727955284221,0.00294628,60750.0,60749.0,0.47248621]
[1727955284441,0.00294628,60750.0,60749.0,0.47048621]
[1727955285242,0.00194628,60750.0,60749.0,0.46848621]
[1727955285448,0.00194628,60750.0,60749.0,0.47048621]
[1727955286300,0.00094628,60750.0,60749.0,0.46548621]
[1727955286513,0.00294628,60750.0,60749.0,0.47248621]
[1727955286956,0.00094628,60750.0,60749.0,0.46548621]
[1727955287163,0.00294628,60750.0,60749.0,0.47248621]
[1727955287376,0.00194628,60750.0,60749.0,0.46548621]
[1727955287593,0.00094628,60750.0,60749.0,0.337311]
[1727955287809,0.00094628,60750.0,60749.0,0.340311]
[1727955287810,0.00194628,60750.0,60749.0,0.340311]
[1727955288076,0.00094628,60750.0,60749.0,0.335311]
[1727955288291,0.00067864,60750.0,60749.0,0.335311]
[1727955288502,0.00167864,60750.0,60749.0,0.337311]
[1727955289360,0.00267864,60750.0,60749.0,0.47089621]
[1727955289569,0.00167864,60750.0,60749.0,0.337311]
[1727955289996,0.00267864,60750.0,60749.0,0.342311]
[1727955291286,0.00267864,60750.0,60749.0,0.007]
[1727955291496,0.16728764,60750.0,60749.0,0.007]
[1727955291952,0.00267864,60750.0,60749.0,0.007]
[1727955293429,0.00167864,60750.0,60749.0,0.005]
[1727955293639,0.00267864,60750.0,60749.0,0.007]
[1727955293848,0.33047435,60750.0,60749.0,0.007]
[1727955294265,0.164614,60749.0,60745.0,0.164621]
[1727955294482,0.16318671,60748.0,60744.0,0.28807308]
[1727955294709,0.329234,60747.0,60744.0,0.28807308]
[1727955294934,0.16318671,60748.0,60744.0,0.100819]
[1727955295145,0.32780271,60748.0,60744.0,0.265443]
[1727955295351,0.35360704,60748.0,60744.0,0.265443]
[1727955295557,0.164617,60747.0,60744.0,0.100819]
[1727955295783,0.164622,60745.0,60744.0,0.100819]
[1727955295989,0.32780871,60745.0,60744.0,0.100819]
[1727955296408,0.32780871,60745.0,60744.0,0.105819]
[1727955296614,0.32780871,60745.0,60744.0,0.100819]
[1727955296852,0.32780871,60745.0,60744.0,0.107819]
[1727955297107,0.32880871,60745.0,60744.0,0.107819]
[1727955297357,0.32880871,60745.0,60744.0,0.100819]
[1727955297600,0.32980871,60745.0,60744.0,0.105819]
[1727955297838,0.33080871,60745.0,60744.0,0.107819]
[1727955298775,0.32880871,60745.0,60744.0,0.102819]
[1727955298992,0.35361434,60745.0,60744.0,0.100819]
[1727955299211,0.32880871,60745.0,60744.0,0.105819]
[1727955299450,0.32980871,60745.0,60744.0,0.107819]
[1727955302630,0.002,60745.0,60744.0,0.107819]
[1727955302852,0.002,60745.0,60744.0,0.272444]
[1727955303081,0.002,60745.0,60744.0,0.445644]
[1727955305127,0.02580577,60748.0,60744.0,0.274019]
[1727955305336,0.02580577,60748.0,60747.0,0.35187108]
[1727955306045,0.00067864,60750.0,60747.0,0.18725408]
[1727955306267,0.00067864,60750.0,60749.0,0.164611]
[1727955306488,0.00067864,60750.0,60749.0,0.332211]
[1727955307198,0.00067864,60750.0,60749.0,0.334211]
[1727955307473,0.24828066,60760.0,60759.0,0.164584]
[1727955307726,0.24828066,60771.0,60759.0,0.44884918]
[1727955307938,0.24828066,60771.0,60770.0,0.343654]
[1727955308164,0.24828066,60771.0,60770.0,0.18725408]
[1727955308610,0.164552,60771.0,60767.0,0.16456]
[1727955308833,0.329062,60779.0,60766.0,0.18725408]
[1727955309044,0.164556,60770.0,60767.0,0.164562]
[1727955309269,0.329101,60772.0,60767.0,0.164562]
[1727955309499,0.02579518,60776.0,60770.0,0.005]
[1727955309728,0.49227071,60775.0,60770.0,0.002]
[1727955309947,0.329088,60774.0,60770.0,0.05977811]
[1727955310166,0.16318671,60773.0,60770.0,0.05977811]
[1727955310596,0.32773371,60773.0,60770.0,0.164553]
[1727955311077,0.32773371,60773.0,60767.0,0.005]
[1727955311078,0.16456,60768.0,60767.0,0.005]
[1727955311518,0.16456,60768.0,60767.0,0.002]
[1727955311737,0.32774671,60768.0,60767.0,0.002]
[1727955311965,0.164569,60765.0,60762.0,0.18725408]
[1727955312194,0.329131,60767.0,60762.0,0.60196609]
[1727955312195,0.16318671,60767.0,60762.0,0.60196609]
[1727955312418,0.16318671,60767.0,60764.0,0.16457]
[1727955312662,0.16318671,60767.0,60765.0,0.164567]
[1727955312887,0.164558,60769.0,60767.0,0.001]
[1727955313100,0.16318671,60769.0,60767.0,0.001]
[1727955313320,0.16318671,60769.0,60766.0,0.42847189]
[1727955313544,0.24828066,60774.0,60766.0,0.42847189]
[1727955313545,0.164549,60772.0,60768.0,0.16456]
[1727955313771,0.24828066,60781.0,60773.0,0.18725408]
[1727955313772,0.24828066,60774.0,60773.0,0.18725408]
[1727955313994,0.41146737,60774.0,60773.0,0.18725408]
[1727955314231,0.16318671,60774.0,60773.0,0.18725408]
[1727955314452,0.16318671,60774.0,60773.0,0.35180008]
[1727955314733,0.18898146,60774.0,60773.0,0.18725408]
[1727955314957,0.02579475,60774.0,60773.0,0.35180008]
[1727955315600,0.164536,60777.0,60773.0,0.18725408]
[1727955315823,0.329043,60783.0,60776.0,0.18725408]
[1727955316068,0.329043,60783.0,60766.0,0.002]
[1727955316069,0.24828066,60782.0,60781.0,0.18725408]
[1727955316506,0.16318671,60783.0,60782.0,0.164522]
[1727955317871,0.16318671,60783.0,60781.0,0.35177808]
[1727955318307,0.003,60782.0,60781.0,0.35177808]
[1727955318572,0.003,60782.0,60781.0,0.45276889]
[1727955318830,0.02579066,60782.0,60781.0,0.45276889]